bitfinex/quotes_ETHUSD_20251224
["timestamp","ask_amount","ask_price","bid_price","bid_amount"]
[1766574617146,0.9209,2936.5,2935.9,0.06812337]
[1766574617341,1.10059,2936.4,2935.7,1e-08]
[1766574618343,1.10059,2936.4,2935.7,3.40633009]
[1766574619243,1.10059,2936.4,2935.7,1e-08]
[1766574619623,1.10059,2936.4,2935.9,0.06812337]
[1766574621231,1.10059,2936.4,2935.7,1e-08]
[1766574621847,0.45060249,2936.3,2935.7,1e-08]
[1766574622038,0.9209,2936.2,2935.7,1e-08]
[1766574623451,0.9209,2936.2,2935.6,0.06912337]
[1766574624523,0.9209,2936.2,2935.6,3.47556736]
[1766574625150,0.9209,2936.2,2935.6,0.001]
[1766574625442,0.9209,2936.2,2935.6,0.06912337]
[1766574625666,0.9209,2936.1,2935.5,0.001]
[1766574625844,0.9209,2936.0,2935.5,0.001]
[1766574628661,0.9209,2935.6,2935.5,0.001]
[1766574628868,0.9209,2935.6,2935.1,3.44890324]
[1766574629163,0.9209,2935.6,2935.3,0.06812337]
[1766574630765,0.9209,2935.6,2935.4,0.07494847]
[1766574630950,4.4710382,2936.0,2935.5,0.001]
[1766574630951,0.9209,2935.9,2935.5,0.001]
[1766574631130,0.6808132,2935.9,2935.6,0.07494847]
[1766574631330,0.9927,2936.1,2935.5,1e-08]
[1766574633038,0.9927,2936.0,2935.5,1e-08]
[1766574634583,0.9927,2936.0,2935.7,0.07494847]
[1766574634873,0.9927,2936.3,2935.9,0.07494847]
[1766574635366,0.9927,2936.3,2936.0,2e-08]
[1766574638473,0.9927,2936.3,2935.7,0.07494847]
[1766574639475,0.9947,2936.3,2935.7,0.07494847]
[1766574639677,0.9947,2936.3,2935.9,0.07494847]
[1766574640479,0.9947,2936.3,2935.7,1e-08]
[1766574640684,0.9947,2936.3,2935.9,0.08514696]
[1766574642186,0.9947,2936.3,2935.8,0.08514696]
[1766574645283,0.9947,2936.3,2935.8,1e-08]
[1766574645582,0.9306,2936.1,2935.8,1e-08]
[1766574647452,0.9326,2936.1,2935.8,1e-08]
[1766574648187,0.9326,2936.1,2935.5,0.08614696]
[1766574648391,0.9326,2936.1,2935.8,1e-08]
[1766574653294,0.9326,2936.1,2935.5,0.08614696]
[1766574653487,0.9326,2936.1,2935.7,1e-08]
[1766574655712,0.002,2936.1,2935.9,1e-08]
[1766574656786,0.002,2936.1,2935.7,1e-08]
[1766574656972,0.002,2936.1,2935.9,1e-08]
[1766574659292,0.002,2936.3,2935.9,1e-08]
[1766574665908,0.002,2936.3,2936.0,0.09877552]
[1766574666091,0.002,2936.3,2936.0,1e-08]
[1766574666421,0.9306,2936.4,2936.2,1e-08]
[1766574667216,1.81896241,2936.7,2936.2,1e-08]
[1766574667517,2.3417577,2936.7,2936.2,1e-08]
[1766574668118,1.4647577,2936.7,2936.1,0.09877552]
[1766574668819,0.002,2936.7,2936.3,1e-08]
[1766574670624,0.002,2936.7,2936.5,1e-08]
[1766574673201,0.002,2936.7,2936.3,1e-08]
[1766574673403,0.002,2936.7,2936.5,0.09877552]
[1766574673607,0.002,2936.8,2936.5,0.09877552]
[1766574673923,0.002,2936.8,2936.7,0.09877552]
[1766574674115,0.002,2936.8,2936.7,1e-08]
[1766574674703,0.9079,2937.1,2936.7,1e-08]
[1766574674915,0.9079,2937.1,2936.9,1e-08]
[1766574675335,0.04256043,2937.0,2936.9,1e-08]
[1766574676530,0.9079,2937.2,2936.9,1e-08]
[1766574678556,0.93146631,2937.1,2936.7,1e-08]
[1766574679338,0.002,2937.0,2936.7,1e-08]
[1766574681931,0.9079,2937.0,2936.7,1e-08]
[1766574684445,0.9079,2937.0,2936.5,0.09877552]
[1766574684646,0.9059,2936.9,2936.6,1e-08]
[1766574685843,0.9059,2936.9,2936.8,0.09877552]
[1766574686039,0.9059,2936.9,2936.6,1e-08]
[1766574686541,0.9059,2936.9,2936.6,0.00100001]
[1766574686738,0.002,2937.0,2936.6,0.00100001]
[1766574686951,0.002,2937.0,2936.7,0.09877552]
[1766574687110,0.002,2937.0,2936.7,1e-08]
[1766574690823,0.9079,2937.0,2936.7,1e-08]
[1766574692349,0.9079,2937.0,2936.6,1e-08]
[1766574693010,0.9079,2937.0,2936.8,0.09877552]
[1766574693240,0.9079,2937.0,2936.6,1e-08]
[1766574693723,0.9079,2937.0,2936.8,0.09877552]
[1766574693936,0.9079,2937.0,2936.6,1e-08]
[1766574694217,0.9079,2937.0,2936.8,0.09877552]
[1766574694735,0.9079,2937.0,2936.8,1e-08]
[1766574695417,0.9828,2937.1,2936.8,1e-08]
[1766574696536,0.9683,2937.9,2937.1,0.09877552]
[1766574696852,0.9663,2937.5,2936.5,4.39413216]
[1766574697052,4.46840196,2937.6,2936.6,0.13627807]
[1766574697053,0.9663,2937.3,2936.6,0.13627807]
[1766574697242,0.9663,2937.3,2936.6,3.99459828]
[1766574697745,0.9663,2937.3,2936.6,0.58931909]
[1766574698043,0.04255753,2937.2,2936.6,0.58931909]
[1766574698422,0.04255753,2937.2,2936.6,0.45304102]
[1766574698621,1.00885753,2937.2,2936.6,0.45304102]
[1766574698933,1.00885753,2937.2,2936.7,0.4847168]
[1766574699314,1.00885753,2937.2,2936.6,0.45304102]
[1766574700138,0.9663,2937.2,2936.7,0.03405182]
[1766574700867,1.00885319,2937.5,2936.7,3.53800206]
[1766574703254,0.04255174,2937.6,2936.9,0.09877552]
[1766574703454,0.04255029,2937.7,2936.9,0.09877552]
[1766574703656,0.9663,2937.7,2936.9,0.5480481]
[1766574703873,0.04255174,2937.6,2936.9,0.5480481]
[1766574704372,0.04255174,2937.6,2937.0,0.03404834]
[1766574704552,0.04255174,2937.6,2936.9,0.5480481]
[1766574705296,0.04254884,2937.8,2937.1,0.09877552]
[1766574705441,0.04254884,2937.8,2937.2,0.03404603]
[1766574705442,0.9663,2937.7,2937.2,0.03404603]
[1766574705964,0.9663,2937.7,2937.0,0.03404834]
[1766574706180,0.04454739,2937.9,2937.5,0.09877552]
[1766574706337,0.002,2938.2,2937.1,0.09877552]
[1766574706338,0.04454305,2938.2,2937.6,0.03404139]
[1766574706541,0.9663,2937.8,2937.1,1.02188015]
[1766574706768,4.51094646,2938.1,2937.0,0.3987015]
[1766574707069,5.47724646,2938.1,2937.1,1.87667843]
[1766574707462,5.47724646,2938.1,2937.2,0.03404603]
[1766574708142,1.0088445,2938.1,2937.2,0.03404603]
[1766574708682,0.9663,2938.1,2937.2,0.03404603]
[1766574708852,4.51294501,2938.2,2937.3,0.89]
[1766574709053,0.002,2938.2,2937.3,1.7488245]
[1766574709459,4.47040196,2938.2,2937.3,1.7488245]
[1766574709947,5.43670196,2938.2,2937.3,1.7488245]
[1766574710963,0.9663,2938.1,2937.3,0.8588245]
[1766574711471,0.9663,2938.1,2937.3,4.26330628]
[1766574711640,0.002,2938.2,2937.4,0.51533063]
[1766574712045,0.9683,2938.9,2937.9,0.09877552]
[1766574712269,0.9663,2938.5,2938.0,0.03403675]
[1766574712466,0.9663,2938.5,2937.7,0.89]
[1766574712670,0.9663,2938.5,2937.8,0.03403907]
[1766574712888,0.9663,2938.5,2937.8,0.09877552]
[1766574713067,0.9683,2938.9,2937.8,0.09877552]
[1766574713264,0.9663,2938.8,2938.0,0.09877552]
[1766574714877,0.9663,2938.8,2938.1,0.0340356]
[1766574715078,1.85066014,2938.8,2938.1,0.0340356]
[1766574715388,0.9683,2938.9,2938.1,0.03192159]
[1766574715686,0.9683,2938.9,2938.2,0.09877552]
[1766574717277,0.002,2938.8,2938.2,0.09877552]
[1766574717777,0.002,2938.8,2938.3,0.03403328]
[1766574718251,0.002,2938.8,2938.2,0.09877552]
[1766574718452,0.9683,2938.8,2938.0,0.09877552]
[1766574718651,0.9663,2938.7,2938.0,0.98877552]
[1766574719452,0.9663,2938.7,2938.1,0.0340356]
[1766574719677,0.9663,2938.7,2938.0,0.98877552]
[1766574719880,0.9663,2938.2,2937.4,0.51533063]
[1766574720083,0.9663,2938.2,2937.5,0.9663]
[1766574720587,0.9663,2937.9,2937.3,0.00093169]
[1766574722783,0.9831,2937.8,2937.3,0.00093169]
[1766574723157,0.9831,2937.6,2937.3,0.00093169]
[1766574724483,1.16911,2937.6,2937.3,3.169e-05]
[1766574725295,0.9831,2937.5,2936.8,0.001]
[1766574725594,0.9831,2937.2,2936.8,0.001]
[1766574727670,0.9831,2937.2,2936.1,3.40685857]
[1766574727671,0.9831,2936.9,2936.1,0.001]
[1766574727996,0.9831,2936.9,2936.2,0.34069251]
[1766574728403,0.9831,2936.9,2936.2,3.74644374]
[1766574728772,0.9831,2936.9,2936.3,0.03405646]
[1766574729472,0.9831,2936.9,2936.2,3.43981578]
[1766574729700,0.9831,2936.9,2936.2,0.03405762]
[1766574729998,0.9831,2936.9,2936.3,0.34408859]
[1766574731002,0.9831,2936.9,2936.4,0.0340553]
[1766574731706,0.9831,2936.9,2936.3,0.34408859]
[1766574731998,0.9831,2936.9,2936.1,3.40587345]
[1766574732500,0.9831,2936.9,2936.0,3.40594349]
[1766574732702,0.9831,2936.9,2936.1,0.77030271]
[1766574735608,3.40443269,2937.4,2936.2,0.03405762]
[1766574735834,0.9831,2937.3,2936.2,0.03405762]
[1766574736372,0.9831,2937.3,2936.1,7.58203698]
[1766574736578,0.9831,2937.3,2936.1,4.17615844]
[1766574736779,0.9831,2937.3,2936.2,1.20515172]
[1766574737509,3.40449162,2937.3,2936.2,4.61081625]
[1766574737688,0.9831,2937.2,2936.2,4.61081625]
[1766574738207,0.9831,2937.2,2936.2,1.20515172]
[1766574738704,0.9831,2937.2,2936.2,4.61090843]
[1766574738897,0.9831,2937.2,2936.3,0.46109084]
[1766574739097,0.9831,2937.2,2936.3,0.4951473]
[1766574739298,0.9831,2937.2,2936.3,0.46109084]
[1766574739700,0.9831,2937.1,2936.3,0.46109084]
[1766574743623,3.40473067,2937.1,2936.3,0.46109084]
[1766574743800,0.9831,2937.0,2936.1,3.40586561]
[1766574744301,0.9831,2937.0,2936.3,0.001]
[1766574745591,0.9831,2936.9,2936.3,0.001]
[1766574749212,0.9831,2936.8,2936.3,0.001]
[1766574750617,0.9831,2936.8,2936.0,0.891]
[1766574750840,0.9831,2936.7,2936.0,1.32081658]
[1766574750991,0.9831,2936.7,2936.0,0.891]
[1766574752511,0.9831,2936.7,2936.1,0.03405878]
[1766574754632,0.9831,2936.7,2936.0,4.29698157]
[1766574755931,0.9831,2936.7,2936.0,0.891]
[1766574757934,0.9831,2936.7,2936.0,4.29699096]
[1766574758229,0.9831,2936.7,2936.1,0.4297991]
[1766574759842,0.9357,2936.6,2936.0,0.001]
[1766574768227,0.002,2936.7,2936.0,0.001]
[1766574773831,0.002,2936.7,2936.0,0.03505994]
[1766574774129,0.002,2936.7,2936.0,0.001]
[1766574774330,0.002,2936.7,2936.1,0.34081024]
[1766574774846,0.002,2936.7,2936.0,0.001]
[1766574776442,0.9357,2936.6,2936.0,0.001]
[1766574782272,0.9357,2936.6,2936.0,0.03505994]
[1766574783451,0.9357,2936.6,2936.0,0.001]
[1766574785755,0.9357,2936.6,2936.0,0.03505994]
[1766574786275,0.9357,2936.6,2936.0,3.44103911]
[1766574786439,0.9357,2936.6,2936.1,0.34420391]
[1766574786636,0.9357,2936.6,2936.2,0.03405762]
[1766574788044,0.9357,2936.6,2936.1,0.34420391]
[1766574789667,0.9377,2936.6,2936.1,0.34420391]
[1766574796977,0.9377,2936.6,2936.2,0.03405762]
[1766574798480,0.9377,2936.6,2936.1,0.34420391]
[1766574801462,0.9377,2936.6,2936.2,0.03405762]
[1766574801785,0.002,2936.7,2936.2,0.03405762]
[1766574801988,0.002,2936.7,2936.2,0.50156575]
[1766574802582,0.9036,2936.9,2936.2,0.50156575]
[1766574802776,0.9036,2936.9,2936.1,3.50457014]
[1766574803158,0.9036,2936.9,2936.2,3.40573648]
[1766574803590,0.9036,2936.9,2936.3,0.03405646]
[1766574804159,0.9036,2936.9,2936.1,7.97342995]
[1766574805357,0.9036,2936.9,2936.3,3.4056298]
[1766574805559,0.9036,2936.9,2936.4,0.34056298]
[1766574806059,0.9056,2936.9,2936.4,0.34056298]
[1766574807094,0.9056,2936.9,2936.2,3.40575272]
[1766574807793,0.9056,2936.9,2936.1,3.40582762]
[1766574817491,0.9056,2936.9,2936.0,4.29693625]
[1766574820065,0.9056,2936.9,2936.0,0.891]
[1766574824011,0.88,2936.9,2936.0,0.891]
[1766574824211,0.9877,2936.8,2936.0,4.72678921]
[1766574824590,0.9877,2936.8,2936.0,1.3208038]
[1766574826124,0.9877,2936.6,2936.0,0.001]
[1766574833521,0.9877,2936.3,2936.0,0.001]
[1766574838237,4.46877996,2936.4,2936.0,0.001]
[1766574840750,4.46877996,2936.1,2935.6,0.001]
[1766574840990,5.34677996,2936.1,2935.6,0.001]
[1766574841556,8.75265988,2936.1,2935.6,0.001]
[1766574842458,5.34677996,2936.1,2935.6,0.001]
[1766574844949,0.878,2936.1,2935.6,0.001]
[1766574845156,0.534678,2936.0,2935.6,0.001]
[1766574846462,1.530978,2936.0,2935.6,0.001]
[1766574849666,0.9963,2935.9,2935.6,0.001]
[1766574852586,0.9963,2935.9,2935.5,0.001]
[1766574855275,0.9963,2935.8,2935.5,0.001]
[1766574855465,0.9963,2935.7,2935.5,0.001]
[1766574859986,0.9963,2935.7,2935.4,0.001]
[1766574861986,0.9963,2935.7,2935.5,0.001]
[1766574862491,0.9963,2935.7,2935.4,0.001]
[1766574862799,0.9963,2935.7,2935.0,1e-08]
[1766574862800,0.9963,2935.5,2935.0,1e-08]
[1766574872692,0.9746,2935.5,2934.8,0.001]
[1766574872894,3.40660939,2935.5,2934.8,0.001]
[1766574873116,0.9746,2935.3,2934.8,0.001]
[1766574873407,0.9746,2935.1,2934.8,0.001]
[1766574873966,0.9746,2935.1,2934.6,0.001]
[1766574874168,0.9746,2935.1,2934.5,0.001]
[1766574883802,0.9754,2934.9,2934.5,0.001]
[1766574897428,0.9774,2934.9,2934.5,0.001]
[1766574897616,0.9754,2934.8,2934.5,0.001]
[1766574900319,0.002,2935.1,2934.5,0.001]
[1766574900634,0.002,2935.7,2934.5,0.001]
[1766574900635,1.8544,2935.3,2934.5,0.001]
[1766574900826,0.879,2935.3,2934.5,0.001]
[1766574901049,0.9754,2935.2,2934.5,0.001]
[1766574901231,0.9674,2935.1,2934.5,0.001]
[1766574902361,0.9674,2935.0,2934.5,0.001]
[1766574904468,4.37456257,2935.0,2934.5,0.001]
[1766574904642,0.9674,2934.9,2934.5,0.001]
[1766574913592,0.9674,2934.6,2933.8,0.001]
[1766574913799,0.9674,2934.4,2933.8,0.001]
[1766574916483,0.9674,2934.3,2933.8,0.001]
[1766574918811,0.9674,2934.4,2933.8,0.001]
[1766574919012,0.9674,2934.3,2933.8,0.001]
[1766574919215,0.9674,2934.2,2933.8,0.001]
[1766574920589,0.9674,2934.4,2933.8,0.001]
[1766574923611,0.9674,2934.3,2933.8,0.001]
[1766574925302,0.9674,2934.2,2933.8,0.001]
[1766574925610,0.9674,2934.2,2933.3,0.001]
[1766574925818,0.9674,2934.2,2933.8,0.001]
[1766574929018,4.3755063,2934.2,2933.8,0.001]
[1766574929337,0.9674,2934.1,2933.8,0.001]
[1766574931570,1.8034,2934.3,2933.8,0.001]
[1766574932765,0.002,2934.2,2933.8,0.001]
[1766574932926,0.52333082,2934.2,2933.8,0.001]
[1766574934239,1.44473082,2934.2,2933.8,0.001]
[1766574935631,0.9214,2934.1,2933.8,0.001]
[1766574938481,0.882,2934.3,2933.8,0.001]
[1766574938482,1.44951396,2934.5,2933.8,0.001]
[1766574938785,5.19305563,2934.7,2933.8,0.001]
[1766574939453,0.9055,2934.9,2933.8,0.001]
[1766574939665,0.88,2934.8,2933.8,0.001]
[1766574940066,5.19293021,2934.8,2933.8,0.001]
[1766574940583,0.002,2934.7,2933.8,0.001]
[1766574941081,0.9055,2934.9,2933.8,0.03508548]
[1766574941279,0.9055,2934.9,2933.8,0.82265568]
[1766574942182,0.9055,2934.9,2933.9,3.40843246]
[1766574942376,0.9055,2934.9,2934.0,0.03408316]
[1766574945085,0.9055,2934.9,2934.0,3.44239846]
[1766574945582,0.9055,2934.9,2934.0,0.03408316]
[1766574945880,0.9055,2934.9,2934.1,0.43334737]
[1766574946378,4.31280509,2934.9,2934.1,0.43334737]
[1766574946573,8.78937306,2934.9,2933.9,0.891]
[1766574947582,5.38206797,2934.9,2933.9,4.29941353]
[1766574947784,5.38406797,2934.9,2933.9,4.29941353]
[1766574948078,8.79134579,2934.9,2933.9,4.29941353]
[1766574948248,7.88584579,2934.9,2933.9,0.891]
[1766574948451,7.88584579,2934.9,2934.0,0.50880647]
[1766574949081,7.88584579,2934.9,2933.9,0.891]
[1766574949683,0.002,2934.9,2933.9,0.891]
[1766574949887,0.002,2934.9,2934.1,4.47656797]
[1766574950267,0.002,2934.9,2934.1,4.57534349]
[1766574950785,0.002,2934.9,2934.1,3.50693254]
[1766574950980,0.002,2934.9,2934.2,0.69152]
[1766574951588,0.002,2934.9,2934.3,0.03407967]
[1766574953569,0.002,2934.9,2934.3,0.891]
[1766574953878,0.002,2934.9,2934.3,4.29895312]
[1766574955878,0.002,2934.9,2934.3,0.891]
[1766574956079,0.002,2934.9,2934.4,0.53219178]
[1766574956278,0.9075,2934.9,2934.4,0.53219178]
[1766574960686,0.9075,2934.9,2934.3,0.891]
[1766574961575,0.9075,2934.9,2934.0,4.43209732]
[1766574961774,0.9075,2934.9,2934.0,3.40925208]
[1766574962408,0.9075,2934.9,2934.0,0.001]
[1766574963117,0.9232,2934.8,2934.0,0.001]
[1766574963415,0.9232,2934.8,2934.1,0.92033394]
[1766574964196,0.9232,2934.8,2934.0,0.001]
[1766574964879,0.9232,2934.8,2933.9,4.771]
[1766574965080,0.9232,2934.5,2933.9,3.771]
[1766574965294,0.9232,2934.5,2933.9,2.771]
[1766574968699,0.9232,2934.5,2933.9,2.772]
[1766574969018,0.9232,2934.5,2934.0,0.62155918]
[1766574969219,0.9232,2934.5,2933.9,2.772]
[1766574981255,0.9232,2934.5,2933.9,1.772]
[1766574981399,0.9232,2934.5,2933.9,0.772]
[1766574981603,0.9232,2934.2,2933.4,3.40895835]
[1766574981800,0.9232,2934.2,2933.4,0.8644]
[1766574982032,0.9232,2934.2,2933.5,0.8644]
[1766574982495,0.9232,2934.2,2933.9,0.001]
[1766574988445,0.88,2934.1,2933.3,0.001]
[1766574989153,3.40831629,2934.0,2933.3,0.001]
[1766574989312,4.17797267,2934.0,2933.3,0.001]
[1766574990745,4.17797267,2934.0,2933.9,0.001]
[1766574990940,4.17797267,2934.0,2933.3,0.001]
[1766574993348,7.58628896,2934.0,2933.3,0.001]
[1766574996657,4.17797267,2934.0,2933.3,0.001]
[1766574997455,0.80345654,2933.9,2933.3,0.001]
[1766574998357,4.17797267,2934.0,2933.3,0.001]
[1766575011569,0.002,2934.5,2933.7,0.09877552]
[1766575011743,3.40979992,2934.5,2933.7,0.09877552]
[1766575012063,3.40979992,2934.5,2933.9,1e-08]
[1766575012644,0.002,2934.0,2933.9,1e-08]
[1766575019969,0.9211,2934.0,2933.5,0.09877552]
[1766575020179,0.9211,2934.0,2933.7,0.09877552]
[1766575020684,1.01787551,2933.7,2933.2,0.001]
[1766575020840,1.01787551,2933.7,2933.3,0.09877552]
[1766575021442,1.01787551,2933.7,2933.3,0.09977552]
[1766575021644,1.01787551,2933.7,2933.3,0.09877552]
[1766575021866,1.01787551,2933.7,2933.3,1.07467552]
[1766575022051,0.9838,2933.9,2933.5,1.06297552]
[1766575022255,0.002,2934.0,2933.6,0.9642]
[1766575022472,0.002,2934.0,2933.7,0.09877552]
[1766575024161,0.9838,2933.9,2933.4,0.9759]
[1766575024983,0.9838,2933.9,2933.5,0.09877552]
[1766575025192,0.9838,2933.9,2933.5,1.07467552]
[1766575025398,0.002,2934.0,2933.7,0.9759]
[1766575025689,0.002,2934.0,2933.8,0.09877552]
[1766575025992,0.002,2934.0,2933.6,1.07467552]
[1766575026188,0.002,2934.0,2933.7,0.9759]
[1766575026388,0.002,2934.0,2933.8,0.09877552]
[1766575028195,0.9858,2934.0,2933.6,0.29530644]
[1766575030897,0.9858,2934.0,2933.7,0.03408664]
[1766575031793,0.9858,2934.0,2933.6,0.29530644]
[1766575032503,0.9858,2934.0,2933.8,0.09877552]
[1766575033869,0.002,2934.0,2933.7,0.8439]
[1766575035397,0.002,2934.0,2933.7,1.27915641]
[1766575036380,0.002,2934.0,2933.8,0.09877552]
[1766575040904,0.002,2934.0,2933.7,1e-08]
[1766575041292,0.002,2934.0,2933.8,0.09877552]
[1766575050814,0.002,2934.0,2933.8,0.09977552]
[1766575052918,0.9917,2934.0,2933.8,0.001]
[1766575053321,0.9917,2934.0,2933.6,0.09877552]
[1766575054714,0.002,2934.0,2933.8,0.09977552]
[1766575057793,0.002,2934.0,2933.8,0.10077552]
[1766575058117,0.002,2934.5,2933.9,0.03408432]
[1766575058118,0.9108,2934.5,2933.9,0.03408432]
[1766575058322,0.9108,2934.5,2934.1,0.09877552]
[1766575059316,0.9108,2934.5,2934.0,0.09877552]
[1766575059932,4.47661006,2934.2,2933.2,0.0978]
[1766575060217,0.002,2934.5,2933.1,0.09877552]
[1766575060218,0.9088,2933.7,2933.1,0.09877552]
[1766575068444,0.9088,2933.7,2933.1,3.50813024]
[1766575070051,0.9088,2933.7,2933.1,0.09877552]
[1766575073157,0.9088,2933.7,2933.1,3.50812253]
[1766575073952,0.9088,2933.7,2933.0,3.41041628]
[1766575074122,0.9088,2933.7,2933.1,0.09877552]
[1766575076353,0.9088,2933.7,2933.1,3.50813119]
[1766575077432,0.9088,2933.7,2933.1,4.30549761]
[1766575077954,0.9088,2933.7,2933.1,5.26069761]
[1766575078957,0.9108,2933.7,2933.1,5.26069761]
[1766575079425,0.9108,2933.7,2933.1,1.05397552]
[1766575079827,0.9108,2933.7,2933.1,0.09877552]
[1766575080451,0.9108,2933.7,2933.0,0.001]
[1766575082937,0.9122,2933.4,2932.9,0.09877552]
[1766575083257,0.881,2933.6,2933.0,1.0416703]
[1766575083558,0.9142,2933.7,2933.2,1.00757552]
[1766575083936,0.002,2933.7,2933.4,0.9088]
[1766575086062,0.002,2933.7,2933.4,1.35388678]
[1766575087164,0.9122,2933.9,2933.5,0.94288897]
[1766575087754,0.002,2934.0,2933.6,1.00757552]
[1766575093883,0.9122,2934.2,2933.5,3.44296273]
[1766575094171,0.9122,2934.2,2933.7,0.09877552]
[1766575095866,0.9122,2934.2,2933.7,1.00757552]
[1766575102180,0.9142,2934.2,2933.7,1.00757552]
[1766575103286,1.43450523,2934.2,2933.7,1.00757552]
[1766575110886,0.9142,2934.2,2933.7,1.00757552]
[1766575126316,0.979,2934.1,2933.0,1e-08]
[1766575126526,0.881,2934.0,2933.0,1e-08]
[1766575126728,0.881,2934.0,2933.0,3.50823583]
[1766575127024,2.19651739,2934.0,2933.0,4.20990641]
[1766575127326,2.19651739,2934.0,2933.2,3.40922978]
[1766575127627,0.881,2934.0,2933.2,3.40922978]
[1766575127943,0.881,2934.0,2933.1,3.40931261]
[1766575128736,0.881,2934.0,2933.2,0.09877552]
[1766575129298,0.002,2934.2,2933.2,0.09877552]
[1766575129633,0.002,2934.2,2933.4,0.09877552]
[1766575129798,0.002,2934.2,2933.6,0.09877552]
[1766575129998,0.002,2934.2,2933.7,0.03408664]
[1766575130230,0.002,2934.2,2933.6,0.09877552]
[1766575130427,0.979,2934.1,2933.6,0.09877552]
[1766575130728,0.979,2934.1,2933.6,0.46283466]
[1766575130928,0.979,2934.1,2933.7,0.03408664]
[1766575133642,0.979,2934.1,2933.6,0.09877552]
[1766575149852,0.979,2934.1,2933.5,0.001]
[1766575149853,0.979,2934.1,2933.5,0.09977552]
[1766575150057,0.9251,2934.0,2933.5,0.09977552]
[1766575150749,0.9251,2933.9,2933.2,0.09877552]
[1766575151155,0.9251,2933.9,2933.2,3.50794122]
[1766575151357,0.9251,2933.9,2933.4,0.09877552]
[1766575151530,1.8091,2934.2,2933.6,0.0998]
[1766575151728,1.06491,2934.2,2933.6,0.0998]
[1766575151925,0.9251,2934.1,2933.6,0.0998]
[1766575152142,0.9251,2934.1,2933.4,0.09877552]
[1766575152550,0.9251,2934.1,2933.2,0.19857552]
[1766575152751,0.9251,2934.1,2933.2,0.09877552]
[1766575153064,0.9251,2933.9,2933.0,3.60799641]
[1766575153762,0.9251,2933.9,2933.1,3.40935881]
[1766575154740,0.9251,2934.1,2933.6,0.19857552]
[1766575157467,0.9251,2934.1,2933.7,0.0998]
[1766575157656,0.9271,2934.1,2933.7,0.0998]
[1766575158369,0.002,2934.1,2933.7,0.0998]
[1766575158573,0.002,2934.1,2933.7,0.46395375]
[1766575160063,0.002,2934.1,2933.8,0.0998]
[1766575160861,0.002,2934.5,2933.8,3.50634863]
[1766575161171,0.002,2934.5,2934.0,0.0978]
[1766575161372,0.9271,2934.8,2934.2,0.0978]
[1766575161670,0.9271,2934.8,2934.4,0.0958]
[1766575164346,0.9271,2934.8,2934.5,0.03407735]
[1766575164772,0.9271,2934.8,2934.4,0.49353611]
[1766575165499,0.002,2934.8,2934.5,0.0958]
[1766575166058,0.002,2934.8,2934.5,0.19457552]
[1766575166572,0.002,2934.9,2934.6,0.0938]
[1766575166767,0.002,2934.9,2934.6,0.49019483]
[1766575166949,0.002,2934.8,2934.6,0.49019483]
[1766575168350,0.002,2934.9,2934.6,0.49019483]
[1766575170177,0.9271,2935.2,2934.7,0.0898]
[1766575171089,0.002,2935.3,2934.9,0.0878]
[1766575171289,0.002,2935.4,2935.0,0.0878]
[1766575172162,0.002,2935.4,2935.0,0.12187155]
[1766575172504,0.002,2935.4,2935.0,0.22064707]
[1766575173159,0.002,2935.4,2935.0,0.18657552]
[1766575174296,0.9435,2935.3,2934.9,0.35940434]
[1766575174468,0.9435,2935.3,2934.5,3.49551919]
[1766575174662,0.9435,2935.3,2934.6,0.47501768]
[1766575174992,0.883,2935.4,2934.6,0.47501768]
[1766575174993,0.9435,2935.2,2934.6,0.47501768]
[1766575175497,0.9435,2935.2,2934.7,0.03407503]
[1766575176181,0.9435,2935.2,2934.7,0.12187503]
[1766575177001,0.9435,2935.2,2934.7,0.0878]
[1766575180492,0.9435,2935.2,2934.8,0.12187387]
[1766575181601,0.9455,2935.2,2934.8,0.12187387]
[1766575181974,0.9455,2935.2,2934.8,0.0878]
[1766575182576,0.9455,2935.2,2934.6,0.47501768]
[1766575182895,0.9455,2935.2,2934.5,0.0878]
[1766575183486,0.9455,2935.2,2934.5,3.49551834]
[1766575184678,0.9455,2935.2,2934.5,0.0878]
[1766575185291,0.9455,2935.2,2934.5,3.495514]
[1766575185602,0.9455,2935.2,2934.5,3.407714]
[1766575185789,0.9455,2935.2,2934.6,0.76935594]
[1766575186208,0.9455,2935.2,2934.7,0.0878]
[1766575187021,0.9348,2934.8,2934.1,4.17758183]
[1766575187216,0.9348,2934.8,2934.1,0.7694]
[1766575187515,0.9348,2934.8,2934.1,1.18716463]
[1766575187819,0.9348,2934.8,2934.1,4.59535342]
[1766575188017,0.9348,2934.8,2934.2,0.7694]
[1766575189401,0.9348,2934.8,2934.5,0.001]
[1766575198743,4.47425434,2935.1,2934.5,0.001]
[1766575198898,1.8168,2935.1,2934.6,0.7694]
[1766575199735,0.9348,2935.1,2934.7,0.7694]
[1766575200229,0.3348,2935.1,2934.7,0.7694]
[1766575201200,0.3348,2935.1,2934.5,0.001]
[1766575201426,0.3348,2935.1,2934.5,0.44807816]
[1766575201823,0.3348,2935.1,2934.5,1.40477816]
[1766575203837,0.3348,2935.1,2934.5,4.81251172]
[1766575204036,0.3348,2935.1,2934.6,0.9567]
[1766575204735,0.002,2935.2,2934.7,0.03407503]
[1766575204927,0.002,2935.2,2934.8,0.9567]
[1766575206037,0.002,2935.1,2934.8,0.9567]
[1766575206605,4.47425434,2935.0,2934.5,0.44807816]
[1766575206810,0.937,2934.9,2934.1,1.37446463]
[1766575207036,0.937,2934.9,2934.2,3.40801719]
[1766575207342,0.937,2934.9,2934.2,4.36471719]
[1766575207514,0.937,2934.9,2934.2,0.9567]